fUSD/lending_fUSD_20260326
["ID","MTS","AMOUNT","RATE_DAILY","PERIOD"]
[418910429,1774529446937,-500.0,0.00015973,2]
[418910430,1774529446947,-167.35574662,0.0001599,2]
[418910431,1774529446957,-167.35574662,0.0001599,2]
[418910432,1774529446966,-500.0,0.00015996,2]
[418910433,1774529446976,-10518.2309099,0.00015997,2]
[418910434,1774529446985,-110450.26344759,0.00015997,2]
[418910435,1774529503458,160.0,0.0001615,120]
[418910436,1774529531633,160.0,0.0001615,120]
[418910437,1774529695565,609.79,8.565e-05,2]
[418910438,1774529705056,205.0,8.565e-05,3]
[418910439,1774529706754,159.0,8.565e-05,3]
[418910440,1774529707948,161.0,8.565e-05,3]
[418910441,1774530007825,153.0,8.565e-05,3]
[418910442,1774530307135,153.0,8.565e-05,3]
[418910443,1774530437229,509.08,8.387e-05,2]
[418910444,1774530468379,162.69,8.292e-05,2]
[418910445,1774530561219,720.58,7.877e-05,2]
[418910447,1774530605488,153.0,8.565e-05,3]
[418910448,1774530625237,557.12,7.782e-05,2]
[418910454,1774530633973,-250.0,8.579e-05,2]
[418910467,1774530638176,-156.82,8.579e-05,2]
[418910468,1774530638185,-437.06,9.323e-05,2]
[418910469,1774530638194,-500.0,9.499e-05,2]
[418910470,1774530638204,-500.0,9.499e-05,2]
[418910471,1774530638213,-349.28911337,9.499e-05,2]
[418910472,1774530638223,-624.72308734,9.499e-05,2]
[418910473,1774530638232,-500.0,9.499e-05,2]
[418910474,1774530638241,-500.0,9.499e-05,2]
[418910475,1774530638251,-500.0,9.499e-05,2]
[418910476,1774530638260,-500.0,9.499e-05,2]
[418910477,1774530638270,-500.0,9.499e-05,2]
[418910478,1774530638279,-500.0,9.499e-05,2]
[418910479,1774530638288,-449.40326973,9.499e-05,2]
[418910480,1774530638297,-500.0,9.499e-05,2]
[418910481,1774530638307,-500.0,9.499e-05,2]
[418910482,1774530638316,-500.0,9.499e-05,2]
[418910483,1774530638325,-1277.42846272,9.499e-05,2]
[418910484,1774530638335,-500.0,9.499e-05,2]
[418910485,1774530638344,-370.74672447,9.499e-05,2]
[418910486,1774530638353,-500.0,9.499e-05,2]
[418910487,1774530638362,-1277.42846272,9.499e-05,2]
[418910488,1774530638372,-500.0,9.499e-05,2]
[418910489,1774530638381,-335.65667304,9.499e-05,2]
[418910490,1774530638390,-1277.42846272,9.499e-05,2]
[418910491,1774530638399,-500.0,9.499e-05,2]
[418910492,1774530638409,-1277.42846272,9.499e-05,2]
[418910493,1774530638418,-1277.42846272,9.499e-05,2]
[418910494,1774530638428,-1277.42846272,9.499e-05,2]
[418910495,1774530638437,-1277.42846272,9.499e-05,2]
[418910496,1774530638447,-1277.42846272,9.499e-05,2]
[418910497,1774530638456,-1277.42846272,9.499e-05,2]
[418910498,1774530638465,-1277.42846272,9.499e-05,2]
[418910499,1774530638475,-1277.42846272,9.499e-05,2]
[418910500,1774530638483,-1277.42846272,9.499e-05,2]
[418910501,1774530638493,-1277.42846272,9.499e-05,2]
[418910502,1774530638502,-1277.42846272,9.499e-05,2]
[418910503,1774530638513,-1277.42846272,9.499e-05,2]
[418910504,1774530638522,-1277.42846272,9.499e-05,2]
[418910505,1774530638532,-1277.42846272,9.499e-05,2]
[418910506,1774530638543,-1277.42846272,9.499e-05,2]
[418910507,1774530638553,-1277.42846272,9.499e-05,2]
[418910508,1774530638562,-1277.42846272,9.499e-05,2]
[418910509,1774530638573,-1277.42846272,9.499e-05,2]
[418910511,1774530638583,-1277.42846272,9.499e-05,2]
[418910513,1774530638592,-1277.42846272,9.499e-05,2]
[418910515,1774530638601,-1277.42846272,9.499e-05,2]
[418910517,1774530638611,-1277.42846272,9.499e-05,2]
[418910519,1774530638620,-1277.42846272,9.499e-05,2]
[418910521,1774530638630,-1277.42846272,9.499e-05,2]
[418910523,1774530638639,-1277.42846272,9.499e-05,2]
[418910525,1774530638648,-1277.42846272,9.499e-05,2]
[418910527,1774530638658,-1277.42846272,9.499e-05,2]
[418910529,1774530638667,-1277.42846272,9.499e-05,2]
[418910531,1774530638676,-1277.42846272,9.499e-05,2]
[418910533,1774530638685,-1277.42846272,9.499e-05,2]
[418910535,1774530638694,-1277.42846272,9.499e-05,2]
[418910537,1774530638704,-1277.42846272,9.499e-05,2]
[418910539,1774530638714,-1277.42846272,9.499e-05,2]
[418910541,1774530638723,-1277.42846272,9.499e-05,2]
[418910543,1774530638731,-591966.76446326,9.5e-05,3]
[418910545,1774530638741,-1483.69,9.995e-05,2]
[418910547,1774530638750,-1943.54141677,0.0001,2]
[418910549,1774530638759,-2752.69256509,0.0001,2]
[418910551,1774530638768,-22935.70002008,0.0001,2]
[418910553,1774530638777,-348.31669646,0.0001,2]
[418910554,1774530638786,-500.0,0.00010151,2]
[418910556,1774530638795,-200.0,0.00010304,2]
[418910558,1774530638804,-249.01,0.00010304,2]
[418910560,1774530638813,-162.69,0.00010366,2]
[418910562,1774530638823,-250.0,0.00010432,2]
[418910564,1774530638832,-250.0,0.00010473,2]
[418910566,1774530638841,-1000.0,0.00010499,2]
[418910568,1774530638850,-878.32470845,0.00010499,2]
[418910570,1774530638860,-300.0,0.00010499,2]
[418910572,1774530638869,-300.0,0.00010499,2]
[418910574,1774530638878,-1200.0,0.00010499,2]
[418910576,1774530638887,-5000.0,0.000105,2]
[418910578,1774530638896,-44287.40247946,0.000105,2]
[418910580,1774530638906,-1500.0,0.00010669,2]
[418910582,1774530638916,-200.0,0.00010733,2]
[418910584,1774530638925,-150.0,0.000108,2]
[418910586,1774530638934,-153.0,0.00010834,3]
[418910588,1774530638943,-379.15,0.0001086,2]
[418910590,1774530638952,-150.0,0.00010959,2]
[418910592,1774530638962,-160.0,0.00011149,2]
[418910594,1774530638971,-979.16666667,0.00011149,2]
[418910596,1774530638980,-539779.7899,0.00011158,2]
[418910598,1774530638989,-1583.38147524,0.00011173,2]
[418910600,1774530638998,-292.54,0.00011233,2]
[418910602,1774530639008,-150.0,0.00011255,2]
[418910604,1774530639017,-2868.872,0.00011258,2]
[418910606,1774530639026,-190.439,0.00011258,2]
[418910608,1774530639035,-30496.35201831,0.00011258,2]
[418910610,1774530639044,-500.0,0.00011258,2]
[418910612,1774530639053,-500.0,0.00011273,2]
[418910614,1774530639063,-9999.99,0.00011299,2]
[418910616,1774530639072,-9999.99,0.00011299,2]
[418910618,1774530639082,-10000.0,0.000113,2]
[418910620,1774530639091,-1707.73262623,0.00011302,2]
[418910622,1774530639100,-2500.0,0.00011378,2]
[418910624,1774530639109,-5000.0,0.00011402,2]
[418910626,1774530639118,-250.0,0.00011402,2]
[418910628,1774530639128,-300.0,0.00011402,2]
[418910630,1774530639137,-300.0,0.00011402,2]
[418910632,1774530639146,-300.0,0.00011402,2]
[418910634,1774530639156,-500.0,0.00011532,2]
[418910636,1774530639165,-420.0,0.00011543,2]
[418910638,1774530639174,-420.0,0.00011543,2]
[418910640,1774530639184,-1680.0,0.00011548,2]
[418910642,1774530639193,-5000.0,0.00011549,2]
[418910643,1774530639202,-153.13021192,0.00011549,2]
[418910645,1774530639211,-1590.45,0.00011562,14]
[418910647,1774530639220,-222.63690758,0.00011565,2]
[418910649,1774530639230,-500.0,0.00011573,2]
[418910651,1774530639240,-504.28717166,0.00011573,2]
[418910653,1774530639248,-500.0,0.00011573,2]
[418910655,1774530639257,-500.0,0.00011573,2]
[418910656,1774530639266,-200.0,0.00011573,2]
[418910658,1774530639275,-151.0,0.00011573,2]
[418910660,1774530639284,-151.0,0.00011573,2]
[418910662,1774530639293,-151.0,0.00011573,2]
[418910664,1774530639302,-151.0,0.00011573,2]
[418910666,1774530639311,-151.0,0.00011573,2]
[418910668,1774530639321,-151.0,0.00011573,2]
[418910670,1774530639330,-151.0,0.00011573,2]
[418910672,1774530639340,-151.0,0.00011573,2]
[418910674,1774530639349,-151.0,0.00011573,2]
[418910676,1774530639358,-151.0,0.00011573,2]
[418910678,1774530639367,-151.0,0.00011573,2]
[418910680,1774530639376,-151.0,0.00011573,2]
[418910682,1774530639385,-151.0,0.00011573,2]
[418910684,1774530639394,-151.0,0.00011573,2]
[418910686,1774530639403,-151.0,0.00011573,2]
[418910688,1774530639413,-151.0,0.00011573,2]
[418910690,1774530639422,-151.0,0.00011573,2]
[418910692,1774530639431,-151.0,0.00011573,2]
[418910694,1774530639441,-151.0,0.00011573,2]
[418910696,1774530639450,-151.0,0.00011573,2]
[418910697,1774530639460,-151.0,0.00011573,2]
[418910698,1774530639469,-151.0,0.00011573,2]
[418910699,1774530639478,-151.0,0.00011573,2]
[418910700,1774530639488,-151.0,0.00011573,2]
[418910701,1774530639498,-151.0,0.00011573,2]
[418910702,1774530639509,-151.0,0.00011573,2]
[418910703,1774530639519,-151.0,0.00011573,2]
[418910704,1774530639529,-151.0,0.00011573,2]
[418910705,1774530639538,-151.0,0.00011573,2]
[418910706,1774530639548,-151.0,0.00011573,2]
[418910707,1774530639558,-151.0,0.00011573,2]
[418910708,1774530639568,-151.0,0.00011573,2]
[418910709,1774530639577,-500.0,0.00011573,2]
[418910710,1774530639589,-500.0,0.00011573,2]
[418910711,1774530639599,-500.0,0.00011573,2]
[418910712,1774530639609,-194.54195204,0.00011573,2]
[418910713,1774530639619,-167.35574662,0.00011578,2]
[418910714,1774530639630,-1034.90824409,0.00011587,3]
[418910715,1774530639640,-1034.90824409,0.00011587,3]
[418910716,1774530639650,-573386.95758638,0.00011588,2]
[418910717,1774530639965,-2923.80028505,0.00011588,2]
[418910718,1774530639976,-84400.00000005,0.00011588,2]
[418910719,1774530639993,-4664.93000002,0.00011588,2]
[418910721,1774530640362,-1137.5,0.00011073,2]
[418910722,1774530640696,-2613.43680985,0.00011073,2]
[418910723,1774530640706,-1152.6314146,0.00011552,2]
[418910724,1774530641034,-169.16832651,0.00011158,2]
[418910725,1774530641043,-755.43064852,0.00011552,2]
[418910726,1774530641054,-171.60002497,0.00011588,2]
[418910727,1774530641066,-834452.71210353,0.00011588,2]
[418910728,1774530641075,-197.38,0.00011652,2]
[418910729,1774530641085,-2056.7515,0.00011665,2]
[418910730,1774530641095,-1000.0,0.00011665,2]
[418910731,1774530641105,-300.0,0.000117,4]
[418910732,1774530641115,-2467.0,0.00011734,2]
[418910733,1774530641125,-418.463,0.00011734,2]
[418910734,1774530641135,-6011.0,0.00011734,2]
[418910735,1774530641144,-600.0,0.000118,4]
[418910736,1774530641153,-500.0,0.000118,2]
[418910737,1774530641162,-500.0,0.000118,2]
[418910738,1774530641171,-500.0,0.000118,2]
[418910739,1774530641181,-500.0,0.000118,2]
[418910740,1774530641190,-500.0,0.000118,2]
[418910741,1774530641200,-500.0,0.000118,2]
[418910742,1774530641211,-500.0,0.000118,2]
[418910743,1774530641220,-500.0,0.000118,2]
[418910744,1774530641229,-500.0,0.000118,2]
[418910745,1774530641239,-500.0,0.000118,2]
[418910746,1774530641248,-500.0,0.000118,2]
[418910747,1774530641258,-500.0,0.000118,2]
[418910748,1774530641267,-500.0,0.000118,2]
[418910749,1774530641277,-500.0,0.000118,2]
[418910750,1774530641287,-500.0,0.000118,2]
[418910751,1774530641297,-500.0,0.000118,2]
[418910752,1774530641308,-500.0,0.000118,2]
[418910753,1774530641317,-500.0,0.000118,2]
[418910754,1774530641326,-500.0,0.000118,2]
[418910755,1774530641335,-500.0,0.000118,2]
[418910756,1774530641345,-500.0,0.000118,2]
[418910757,1774530641355,-519.0,0.000118,2]
[418910758,1774530641365,-876.0,0.000118,2]
[418910759,1774530641374,-500.0,0.000118,2]
[418910760,1774530641384,-500.0,0.000118,2]
[418910761,1774530641393,-500.0,0.000118,2]
[418910762,1774530641402,-500.0,0.000118,2]
[418910763,1774530641412,-500.0,0.000118,2]
[418910764,1774530641421,-500.0,0.000118,2]
[418910766,1774530641430,-500.0,0.000118,2]
[418910768,1774530641440,-500.0,0.000118,2]
[418910770,1774530641451,-500.0,0.000118,2]
[418910772,1774530641462,-500.0,0.000118,2]
[418910774,1774530641473,-500.0,0.000118,2]
[418910776,1774530641484,-500.0,0.000118,2]
[418910778,1774530641493,-500.0,0.000118,2]
[418910779,1774530641504,-500.0,0.000118,2]
[418910780,1774530641514,-500.0,0.00011806,2]
[418910781,1774530641524,-1707.73262623,0.00011813,2]
[418910782,1774530641535,-1000.0,0.00011821,2]
[418910783,1774530641544,-1583.38147522,0.00011848,2]
[418910784,1774530641554,-900.0,0.000119,4]
[418910785,1774530641563,-500.0,0.0001208,2]
[418910786,1774530641573,-1000.0,0.00012121,2]
[418910787,1774530641583,-500.62117496,0.00012121,2]
[418910788,1774530641592,-200.0,0.00012121,2]
[418910789,1774530641603,-197.2429,0.000122,2]
[418910790,1774530641612,-255.0,0.00012313,2]
[418910791,1774530641621,-1707.73262623,0.00012324,2]
[418910792,1774530641631,-500.0,0.00012354,2]
[418910793,1774530641641,-478.96152073,0.00012368,2]
[418910794,1774530641650,-162.69,0.00012439,2]
[418910795,1774530641660,-8969.50058419,0.00012461,2]
[418910796,1774530641670,-150.0,0.00012495,2]
[418910797,1774530641679,-150.0,0.00012495,2]
[418910798,1774530641692,-3516.0,0.00012495,2]
[418910799,1774530641702,-1345.0,0.00012495,2]
[418910800,1774530641711,-621.0,0.00012495,2]
[418910801,1774530641720,-1045.0,0.00012495,2]
[418910802,1774530641729,-150.0,0.00012495,2]
[418910803,1774530641738,-1262.0,0.00012495,2]
[418910804,1774530641748,-1216.0,0.00012495,2]
[418910805,1774530641757,-924.0,0.00012495,2]
[418910806,1774530641766,-1583.38147522,0.00012524,2]
[418910807,1774530641776,-222.63690755,0.00012621,2]
[418910808,1774530641785,-500.0,0.00012628,2]
[418910809,1774530641794,-507.06187853,0.00012668,2]
[418910810,1774530641804,-200.0,0.00012669,2]
[418910811,1774530641813,-500.0,0.00012684,2]
[418910812,1774530641823,-500.0,0.00012684,2]
[418910813,1774530641832,-500.0,0.00012684,2]
[418910814,1774530641841,-500.0,0.00012684,2]
[418910815,1774530641850,-500.0,0.00012684,2]
[418910816,1774530641860,-500.0,0.00012684,2]
[418910817,1774530641869,-500.0,0.00012684,2]
[418910818,1774530641878,-500.0,0.00012684,2]
[418910819,1774530641888,-500.0,0.00012684,2]
[418910820,1774530641898,-500.0,0.00012684,2]
[418910821,1774530641907,-500.0,0.00012684,2]
[418910822,1774530641916,-500.0,0.00012684,2]
[418910823,1774530641926,-587.0,0.0001269,2]
[418910824,1774530641935,-587.0,0.00012691,2]
[418910825,1774530641944,-2351.0,0.00012703,2]
[418910826,1774530641955,-1707.73262623,0.00012835,2]
[418910827,1774530641964,-308.35748757,0.00012902,2]
[418910828,1774530641974,-8969.50058419,0.00012953,2]
[418910829,1774530641983,-4122.42229245,0.00013,2]
[418910830,1774530641992,-5345.46755232,0.00013,7]
[418910831,1774530642001,-2710.07396103,0.00013,15]
[418910832,1774530642010,-153.0,0.00013104,3]
[418910833,1774530642019,-1583.38147522,0.00013199,2]
[418910834,1774530642029,-1536.0,0.00013254,2]
[418910835,1774530642038,-1707.73262623,0.00013346,2]
[418910836,1774530642047,-3240.0,0.00013425,2]
[418910837,1774530642057,-8969.50058419,0.00013444,2]
[418910838,1774530642066,-433.0,0.00013472,2]
[418910839,1774530642075,-259.365,0.000136,2]
[418910840,1774530642084,-361.348864,0.00013656,2]
[418910841,1774530642094,-13359.0,0.00013671,2]
[418910842,1774530642103,-222.63690755,0.00013677,2]
[418910843,1774530642113,-250.0,0.00013696,2]
[418910844,1774530642122,-599.75402637,0.00013698,2]
[418910845,1774530642132,-2828.7,0.00013698,2]
[418910846,1774530642141,-2828.7,0.00013698,2]
[418910847,1774530642151,-2828.7,0.00013698,2]
[418910848,1774530642160,-2828.7,0.00013698,2]
[418910849,1774530642375,-2828.7,0.00013698,2]
[418910850,1774530642387,-2828.7,0.00013698,2]
[418910851,1774530642398,-2828.7,0.00013698,2]
[418910852,1774530642407,-2828.7,0.00013698,2]
[418910853,1774530642417,-2828.7,0.00013698,2]
[418910854,1774530642425,-2828.7,0.00013698,2]
[418910855,1774530642436,-257.73702656,0.00013698,2]
[418910856,1774530642447,-500.0,0.00013698,2]
[418910857,1774530642456,-500.0,0.00013698,2]
[418910858,1774530642467,-500.0,0.00013698,2]
[418910859,1774530642476,-500.0,0.00013698,2]
[418910860,1774530642486,-500.0,0.00013698,2]
[418910861,1774530642497,-500.0,0.00013698,2]
[418910862,1774530642507,-500.0,0.00013698,2]
[418910863,1774530642517,-500.0,0.00013698,2]
[418910864,1774530642527,-200.0,0.00013699,2]
[418910865,1774530642536,-248.08,0.00013699,2]
[418910866,1774530642545,-330.65480685,0.00013699,2]
[418910867,1774530642555,-1692.32,0.000137,2]
[418910868,1774530642564,-498.91,0.000137,2]
[418910869,1774530642574,-1698.19,0.000137,2]
[418910870,1774530642583,-2162.45,0.000137,2]
[418910871,1774530642592,-898.0,0.00013828,5]
[418910872,1774530642602,-1707.73262623,0.00013856,2]
[418910873,1774530642612,-1583.38147522,0.00013874,2]
[418910874,1774530642621,-8969.50058419,0.00013935,2]
[418910875,1774530642631,-200.0,0.00013953,2]
[418910876,1774530642641,-3292.0,0.00013974,2]
[418910877,1774530642651,-200.0,0.00014,2]
[418910878,1774530642660,-504.0,0.00014,2]
[418910879,1774530642669,-197.38,0.00014053,2]
[418910880,1774530642678,-10101.53,0.00014078,2]
[418910881,1774530642688,-500.0,0.00014117,2]
[418910882,1774530642696,-500.0,0.00014117,2]
[418910883,1774530642706,-500.0,0.00014117,2]
[418910884,1774530642715,-500.0,0.00014117,2]
[418910885,1774530642724,-500.0,0.00014117,2]
[418910886,1774530642733,-500.0,0.00014117,2]
[418910887,1774530642743,-500.0,0.00014117,2]
[418910888,1774530642752,-500.0,0.00014117,2]
[418910889,1774530642761,-500.0,0.00014117,2]
[418910890,1774530642769,-500.0,0.00014117,2]
[418910891,1774530642779,-500.0,0.00014117,2]
[418910892,1774530642788,-501.45238975,0.00014117,2]
[418910893,1774530642798,-548.0,0.00014117,2]
[418910894,1774530642807,-548.0,0.00014117,2]
[418910895,1774530642816,-548.0,0.00014117,2]
[418910896,1774530642825,-500.0,0.00014117,2]
[418910897,1774530642835,-548.0,0.00014117,2]
[418910898,1774530642844,-548.0,0.00014117,2]
[418910899,1774530642853,-500.0,0.00014117,2]
[418910900,1774530642862,-548.0,0.00014117,2]
[418910901,1774530642873,-500.0,0.00014117,2]
[418910902,1774530642882,-548.0,0.00014117,2]
[418910903,1774530642893,-500.0,0.00014117,2]
[418910904,1774530642902,-548.0,0.00014117,2]
[418910905,1774530642911,-500.0,0.00014117,2]
[418910906,1774530642920,-548.0,0.00014117,2]
[418910907,1774530642932,-500.0,0.00014117,2]
[418910908,1774530642943,-548.0,0.00014117,2]
[418910909,1774530642953,-500.0,0.00014117,2]
[418910910,1774530642963,-548.0,0.00014117,2]
[418910911,1774530642973,-500.0,0.00014117,2]
[418910912,1774530642983,-548.0,0.00014117,2]
[418910913,1774530642993,-500.0,0.00014117,2]
[418910914,1774530643003,-548.0,0.00014117,2]
[418910915,1774530643013,-500.0,0.00014117,2]
[418910916,1774530643022,-548.0,0.00014117,2]
[418910917,1774530643032,-500.0,0.00014117,2]
[418910918,1774530643042,-548.0,0.00014117,2]
[418910919,1774530643052,-500.0,0.00014117,2]
[418910920,1774530643062,-500.0,0.00014117,2]
[418910921,1774530643071,-500.0,0.00014117,2]
[418910922,1774530643081,-548.0,0.00014117,2]
[418910923,1774530643091,-500.0,0.00014117,2]
[418910924,1774530643101,-500.0,0.00014117,2]
[418910925,1774530643110,-575.92133109,0.00014117,2]
[418910926,1774530643120,-548.0,0.00014117,2]
[418910927,1774530643130,-500.0,0.00014117,2]
[418910928,1774530643140,-500.0,0.00014117,2]
[418910929,1774530643150,-500.0,0.00014117,2]
[418910930,1774530643159,-500.0,0.00014117,2]
[418910931,1774530643169,-548.0,0.00014117,2]
[418910932,1774530643179,-500.0,0.00014117,2]
[418910933,1774530643189,-500.0,0.00014117,2]
[418910934,1774530643198,-500.0,0.00014117,2]
[418910935,1774530643208,-500.0,0.00014117,2]
[418910936,1774530643218,-500.0,0.00014117,2]
[418910937,1774530643228,-500.0,0.00014117,2]
[418910938,1774530643237,-500.0,0.00014117,2]
[418910939,1774530643247,-500.0,0.00014117,2]
[418910940,1774530643256,-500.0,0.00014117,2]
[418910941,1774530643265,-500.0,0.00014117,2]
[418910942,1774530643275,-500.0,0.00014117,2]
[418910943,1774530643285,-570.20962987,0.00014117,2]
[418910944,1774530643294,-500.0,0.00014117,2]
[418910945,1774530643303,-548.0,0.00014117,2]
[418910946,1774530643313,-548.0,0.00014117,2]
[418910947,1774530643322,-500.0,0.00014117,2]
[418910948,1774530643331,-500.0,0.00014117,2]
[418910949,1774530643341,-566.20015322,0.00014117,2]
[418910950,1774530643350,-702.0,0.00014117,2]
[418910951,1774530643359,-702.0,0.00014117,2]
[418910952,1774530643368,-702.0,0.00014117,2]
[418910953,1774530643378,-702.0,0.00014117,2]
[418910954,1774530643387,-702.0,0.00014117,2]
[418910955,1774530643397,-548.0,0.00014117,2]
[418910956,1774530643406,-702.0,0.00014117,2]
[418910957,1774530643416,-702.0,0.00014117,2]
[418910958,1774530643425,-702.0,0.00014117,2]
[418910959,1774530643435,-702.0,0.00014117,2]
[418910960,1774530643444,-702.0,0.00014117,2]
[418910961,1774530643453,-702.0,0.00014117,2]
[418910962,1774530643463,-702.0,0.00014117,2]
[418910963,1774530643472,-548.0,0.00014117,2]
[418910964,1774530643482,-702.0,0.00014117,2]
[418910965,1774530643491,-702.0,0.00014117,2]
[418910966,1774530643501,-702.0,0.00014117,2]
[418910967,1774530643510,-702.0,0.00014117,2]
[418910968,1774530643520,-702.0,0.00014117,2]
[418910969,1774530643530,-702.0,0.00014117,2]
[418910970,1774530643539,-548.0,0.00014117,2]
[418910971,1774530643548,-702.0,0.00014117,2]
[418910972,1774530643558,-702.0,0.00014117,2]
[418910973,1774530643567,-554.45528545,0.00014117,2]
[418910974,1774530643576,-702.0,0.00014117,2]
[418910975,1774530643586,-500.0,0.00014117,2]
[418910976,1774530643596,-500.0,0.00014117,2]
[418910977,1774530643605,-500.0,0.00014119,2]
[418910978,1774530643614,-155.84481505,0.0001412,2]
[418910979,1774530643624,-500.0,0.0001412,2]
[418910980,1774530643633,-500.0,0.0001412,2]
[418910981,1774530643643,-500.0,0.0001412,2]
[418910982,1774530643652,-500.0,0.0001412,2]
[418910983,1774530643662,-500.0,0.0001412,2]
[418910984,1774530643672,-500.0,0.0001412,2]
[418910985,1774530643681,-500.0,0.0001412,2]
[418910986,1774530643690,-500.0,0.0001412,2]
[418910987,1774530643699,-500.0,0.0001412,2]
[418910988,1774530643709,-500.0,0.0001412,2]
[418910989,1774530643718,-500.0,0.0001412,2]
[418910990,1774530643727,-500.0,0.0001412,2]
[418910991,1774530643737,-500.0,0.0001412,2]
[418910992,1774530643747,-500.0,0.0001412,2]
[418910993,1774530643756,-150.0,0.0001412,2]
[418910994,1774530643765,-500.0,0.0001412,2]
[418910995,1774530643775,-500.0,0.0001412,2]
[418910996,1774530643785,-170.40246758,0.0001412,2]
[418910997,1774530643795,-152.74342188,0.0001412,2]
[418910998,1774530643804,-500.0,0.0001412,2]
[418910999,1774530643813,-378.87354826,0.0001412,2]
[418911000,1774530643823,-500.0,0.0001412,2]
[418911001,1774530643832,-500.0,0.0001412,2]
[418911002,1774530643841,-500.0,0.0001412,2]
[418911003,1774530643850,-500.0,0.0001412,2]
[418911004,1774530643860,-500.0,0.0001412,2]
[418911005,1774530643869,-206.13980161,0.0001412,2]
[418911006,1774530643879,-150.0,0.0001412,2]
[418911007,1774530643889,-388.14313993,0.0001412,2]
[418911008,1774530643898,-214.58664017,0.0001412,2]
[418911009,1774530643908,-500.0,0.0001412,2]
[418911010,1774530643917,-500.0,0.0001412,2]
[418911011,1774530643927,-500.0,0.0001412,2]
[418911012,1774530643936,-500.0,0.0001412,2]
[418911013,1774530643946,-500.0,0.0001412,2]
[418911014,1774530643956,-343.66648939,0.0001412,2]
[418911015,1774530643965,-428.0,0.0001412,2]
[418911016,1774530643975,-428.0,0.0001412,2]
[418911017,1774530643985,-428.0,0.0001412,2]
[418911018,1774530643994,-428.0,0.0001412,2]
[418911019,1774530644004,-428.0,0.0001412,2]
[418911020,1774530644014,-428.0,0.0001412,2]
[418911021,1774530644023,-428.0,0.0001412,2]
[418911022,1774530644033,-428.0,0.0001412,2]
[418911023,1774530644042,-428.0,0.0001412,2]
[418911024,1774530644051,-500.0,0.0001412,2]
[418911025,1774530644061,-428.0,0.0001412,2]
[418911026,1774530644070,-500.0,0.0001412,2]
[418911027,1774530644080,-500.0,0.0001412,2]
[418911028,1774530644089,-428.0,0.0001412,2]
[418911029,1774530644099,-500.0,0.0001412,2]
[418911030,1774530644109,-428.0,0.0001412,2]
[418911031,1774530644119,-500.0,0.0001412,2]
[418911032,1774530644128,-500.0,0.0001412,2]
[418911033,1774530644138,-428.0,0.0001412,2]
[418911034,1774530644147,-411.52386378,0.0001412,2]
[418911035,1774530644157,-500.0,0.0001412,2]
[418911036,1774530644167,-428.0,0.0001412,2]
[418911037,1774530644176,-500.0,0.0001412,2]
[418911038,1774530644185,-428.0,0.0001412,2]
[418911039,1774530644195,-500.0,0.0001412,2]
[418911040,1774530644204,-500.0,0.0001412,2]
[418911041,1774530644213,-500.0,0.0001412,2]
[418911042,1774530644223,-500.0,0.0001412,2]
[418911043,1774530644232,-428.0,0.0001412,2]
[418911044,1774530644242,-556.51792629,0.0001412,2]
[418911045,1774530644251,-428.0,0.0001412,2]
[418911046,1774530644260,-500.0,0.0001412,2]